fUSD/lending_fUSD_20250622
["ID","MTS","AMOUNT","RATE_DAILY","PERIOD"]
[367042884,1750635039748,-26705.7525573,0.00034876,2]
[367042885,1750635039758,-151.0,0.0003488,7]
[367042886,1750635039767,-152.932254,0.0003488,7]
[367042887,1750635039778,-151.0,0.0003488,7]
[367042888,1750635039788,-26705.7525573,0.0003488,2]
[367042889,1750635039798,-43562.5013303,0.0003488,2]
[367042890,1750635039813,-150.51,0.0003488,2]
[367042891,1750635039823,-26705.7525573,0.0003488,2]
[367042892,1750635039833,-21781.2506652,0.0003488,2]
[367042893,1750635039843,-151.0,0.00034881,7]
[367042894,1750635039853,-350.0,0.00034881,19]
[367042895,1750635039862,-151.6582037,0.00034881,19]
[367042896,1750635039872,-155.0,0.00034885,2]
[367042897,1750635039882,-151.0,0.00034885,7]
[367042898,1750635039892,-151.0,0.00034885,7]
[367042899,1750635039902,-151.0,0.00034885,7]
[367042900,1750635039911,-151.0,0.00034885,7]
[367042901,1750635039921,-277.552904,0.00034885,7]
[367042902,1750635039931,-174.664616,0.00034885,7]
[367042903,1750635039940,-174.664616,0.00034885,7]
[367042904,1750635039951,-174.664616,0.00034885,7]
[367042905,1750635039960,-174.664616,0.00034885,7]
[367042906,1750635039970,-174.664616,0.00034885,7]
[367042907,1750635039979,-174.664616,0.00034885,7]
[367042908,1750635039990,-174.664616,0.00034885,7]
[367042909,1750635039999,-174.664616,0.00034885,7]
[367042910,1750635040008,-174.664616,0.00034885,7]
[367042911,1750635040018,-174.664616,0.00034885,7]
[367042912,1750635040027,-151.0,0.00034885,7]
[367042913,1750635040036,-151.0,0.00034885,7]
[367042914,1750635040046,-151.0,0.00034886,7]
[367042915,1750635040058,-151.0,0.00034886,7]
[367042916,1750635040068,-151.0,0.00034886,7]
[367042917,1750635040077,-242.55180282,0.00034886,7]
[367042918,1750635040087,-151.0,0.00034886,7]
[367042919,1750635040097,-151.0,0.00034886,7]
[367042920,1750635040106,-151.0,0.00034886,7]
[367042921,1750635040116,-208.754726,0.00034886,7]
[367042922,1750635040125,-151.0,0.00034886,7]
[367042923,1750635040135,-151.0,0.00034886,7]
[367042924,1750635040145,-151.0,0.00034886,7]
[367042925,1750635040155,-151.0,0.00034886,7]
[367042926,1750635040164,-151.0,0.00034886,7]
[367042927,1750635040174,-151.0,0.00034886,7]
[367042928,1750635040184,-151.0,0.00034886,7]
[367042929,1750635040193,-151.0,0.00034886,7]
[367042930,1750635040203,-151.0,0.00034886,7]
[367042931,1750635040212,-151.0,0.00034886,7]
[367042932,1750635040222,-151.0,0.00034886,7]
[367042933,1750635040232,-151.0,0.00034886,7]
[367042934,1750635040242,-184.005829,0.00034887,7]
[367042935,1750635040251,-184.005829,0.00034887,7]
[367042937,1750635040260,-184.005829,0.00034887,7]
[367042939,1750635040270,-184.005829,0.00034887,7]
[367042941,1750635040279,-184.005829,0.00034887,7]
[367042943,1750635040289,-184.005829,0.00034887,7]
[367042945,1750635040300,-263.229359,0.00034887,7]
[367042947,1750635040311,-263.229359,0.00034887,7]
[367042949,1750635040321,-263.229359,0.00034887,7]
[367042951,1750635040330,-263.229359,0.00034887,7]
[367042953,1750635040340,-263.229359,0.00034887,7]
[367042955,1750635040349,-263.229359,0.00034887,7]
[367042957,1750635040359,-263.229359,0.00034887,7]
[367042959,1750635040368,-263.229359,0.00034887,7]
[367042961,1750635040377,-263.229359,0.00034887,7]
[367042963,1750635040387,-263.229359,0.00034887,7]
[367042965,1750635040397,-263.229359,0.00034887,7]
[367042967,1750635040406,-263.229359,0.00034887,7]
[367042969,1750635040416,-263.229359,0.00034887,7]
[367042971,1750635040425,-263.229359,0.00034887,7]
[367042974,1750635040435,-151.0,0.00034888,7]
[367042975,1750635040445,-184.005829,0.00034888,7]
[367042977,1750635040454,-184.005829,0.00034888,7]
[367042979,1750635040464,-263.229359,0.00034888,7]
[367042981,1750635040473,-151.0,0.00034888,7]
[367042983,1750635040483,-263.229359,0.00034888,7]
[367042985,1750635040492,-174.664616,0.00034888,7]
[367042987,1750635040502,-174.664616,0.00034888,7]
[367042989,1750635040513,-21781.2506652,0.00034888,2]
[367042990,1750635040524,-26705.7525573,0.00034889,2]
[367042991,1750635040534,-174.664616,0.00034889,7]
[367042992,1750635040544,-174.664616,0.00034889,7]
[367042993,1750635040556,-300.0,0.00034889,10]
[367042994,1750635040567,-549.29957859,0.0003489,30]
[367042995,1750635040576,-151.0,0.0003489,7]
[367042996,1750635040586,-184.005829,0.0003489,7]
[367042997,1750635040597,-184.005829,0.0003489,7]
[367042998,1750635040607,-263.229359,0.0003489,7]
[367042999,1750635040616,-291.813256,0.0003489,7]
[367043000,1750635040625,-263.229355,0.0003489,7]
[367043001,1750635040636,-1500.0,0.0003489,28]
[367043002,1750635040645,-1500.0,0.0003489,28]
[367043003,1750635040655,-1500.0,0.0003489,28]
[367043004,1750635040664,-1500.0,0.0003489,28]
[367043005,1750635040674,-1500.0,0.0003489,28]
[367043006,1750635040683,-1500.0,0.0003489,28]
[367043007,1750635040693,-1500.0,0.0003489,28]
[367043008,1750635040703,-1500.0,0.0003489,28]
[367043009,1750635040712,-1500.0,0.0003489,28]
[367043010,1750635040721,-1500.0,0.0003489,28]
[367043011,1750635040731,-1500.0,0.0003489,28]
[367043012,1750635040740,-1500.0,0.0003489,28]
[367043013,1750635040749,-1500.0,0.0003489,28]
[367043014,1750635040759,-1500.0,0.0003489,28]
[367043015,1750635040768,-1500.0,0.0003489,28]
[367043016,1750635040777,-1500.0,0.0003489,28]
[367043017,1750635040787,-1500.0,0.0003489,28]
[367043018,1750635040796,-1500.0,0.0003489,28]
[367043019,1750635040809,-1500.0,0.0003489,28]
[367043020,1750635040818,-1500.0,0.0003489,28]
[367043021,1750635040828,-1500.0,0.0003489,28]
[367043022,1750635040837,-1500.0,0.0003489,28]
[367043023,1750635040846,-1500.0,0.0003489,28]
[367043024,1750635040855,-1500.0,0.0003489,28]
[367043025,1750635040864,-1500.0,0.0003489,28]
[367043026,1750635040874,-1500.0,0.0003489,28]
[367043027,1750635040883,-1500.0,0.0003489,28]
[367043028,1750635040893,-1500.0,0.0003489,28]
[367043029,1750635040903,-1500.0,0.0003489,28]
[367043030,1750635040912,-1500.0,0.0003489,28]
[367043031,1750635040922,-1500.0,0.0003489,28]
[367043032,1750635040931,-226.03873,0.0003489,28]
[367043033,1750635040941,-151.0,0.0003489,7]
[367043034,1750635040951,-21781.2506652,0.0003489,2]
[367043035,1750635040960,-155.12,0.0003489,2]
[367043036,1750635040969,-53411.5051145,0.00034891,2]
[367043037,1750635040979,-21781.2506652,0.00034891,2]
[367043038,1750635040988,-151.0,0.00034891,7]
[367043039,1750635040998,-184.005829,0.00034891,7]
[367043040,1750635041008,-184.005829,0.00034891,7]
[367043041,1750635041017,-174.664616,0.00034891,7]
[367043042,1750635041027,-174.664616,0.00034891,7]
[367043043,1750635041036,-151.0,0.00034898,7]
[367043044,1750635041045,-231.272661,0.00034898,7]
[367043045,1750635041055,-151.0,0.00034898,7]
[367043046,1750635041064,-289.657951,0.00034898,7]
[367043047,1750635041074,-289.775849,0.00034898,2]
[367043048,1750635041083,-289.775849,0.00034898,2]
[367043049,1750635041093,-289.775849,0.00034898,2]
[367043050,1750635041102,-289.775849,0.00034898,2]
[367043051,1750635041112,-289.775849,0.00034898,2]
[367043052,1750635041121,-289.775849,0.00034898,2]
[367043053,1750635041131,-289.775849,0.00034898,2]
[367043054,1750635041140,-289.775849,0.00034898,2]
[367043055,1750635041150,-289.775849,0.00034898,2]
[367043056,1750635041159,-289.775849,0.00034898,2]
[367043057,1750635041168,-289.775849,0.00034898,2]
[367043058,1750635041178,-289.775849,0.00034898,2]
[367043059,1750635041187,-289.775849,0.00034898,2]
[367043060,1750635041197,-289.775849,0.00034898,2]
[367043061,1750635041207,-289.775849,0.00034898,2]
[367043062,1750635041534,-289.775849,0.00034898,2]
[367043063,1750635041553,-151.0,0.00034898,7]
[367043064,1750635041563,-151.0,0.00034898,7]
[367043065,1750635041573,-151.0,0.00034898,7]
[367043066,1750635041583,-151.0,0.00034898,7]
[367043067,1750635041592,-151.0,0.00034898,7]
[367043068,1750635041603,-151.0,0.00034898,7]
[367043069,1750635041613,-151.0,0.00034898,7]
[367043070,1750635041623,-151.0,0.00034898,7]
[367043071,1750635041632,-151.0,0.00034898,7]
[367043072,1750635041642,-151.0,0.00034898,7]
[367043073,1750635041651,-151.0,0.00034898,7]
[367043074,1750635041660,-882.525702,0.00034898,7]
[367043075,1750635041671,-882.525702,0.00034898,7]
[367043076,1750635041680,-882.525702,0.00034898,7]
[367043077,1750635041690,-882.525702,0.00034898,7]
[367043078,1750635041699,-882.525702,0.00034898,7]
[367043079,1750635041709,-882.525702,0.00034898,7]
[367043080,1750635041718,-882.525702,0.00034898,7]
[367043081,1750635041727,-882.525702,0.00034898,7]
[367043082,1750635041737,-882.525702,0.00034898,7]
[367043083,1750635041746,-882.525702,0.00034898,7]
[367043084,1750635041756,-882.525702,0.00034898,7]
[367043085,1750635041765,-882.525702,0.00034898,7]
[367043086,1750635041775,-151.0,0.00034898,7]
[367043087,1750635041785,-229.467453,0.00034898,7]
[367043088,1750635041794,-229.467453,0.00034898,7]
[367043089,1750635041803,-229.467453,0.00034898,7]
[367043090,1750635041813,-229.467453,0.00034898,7]
[367043091,1750635041823,-229.467453,0.00034898,7]
[367043092,1750635041832,-229.467453,0.00034898,7]
[367043093,1750635041842,-229.467453,0.00034898,7]
[367043094,1750635041851,-229.467453,0.00034898,7]
[367043095,1750635041860,-229.467453,0.00034898,7]
[367043096,1750635041869,-229.467453,0.00034898,7]
[367043097,1750635041879,-229.467453,0.00034898,7]
[367043098,1750635041888,-229.467453,0.00034898,7]
[367043099,1750635041897,-229.467453,0.00034898,7]
[367043100,1750635041907,-229.467453,0.00034898,7]
[367043101,1750635041916,-229.467453,0.00034898,7]
[367043102,1750635041925,-229.467453,0.00034898,7]
[367043103,1750635041934,-151.0,0.00034899,7]
[367043104,1750635041943,-151.0,0.00034899,7]
[367043105,1750635041953,-151.0,0.00034899,7]
[367043106,1750635041962,-151.0,0.00034899,7]
[367043107,1750635041971,-151.0,0.00034899,7]
[367043108,1750635041981,-151.0,0.00034899,7]
[367043109,1750635041990,-151.0,0.00034899,7]
[367043110,1750635041999,-151.0,0.00034899,7]
[367043111,1750635042009,-151.0,0.00034899,7]
[367043112,1750635042018,-151.0,0.00034899,7]
[367043113,1750635042027,-151.0,0.00034899,7]
[367043114,1750635042036,-151.0,0.00034899,7]
[367043115,1750635042046,-151.0,0.00034899,7]
[367043116,1750635042056,-151.0,0.00034899,7]
[367043117,1750635042065,-151.0,0.00034899,7]
[367043118,1750635042075,-151.0,0.00034899,7]
[367043119,1750635042085,-151.0,0.00034899,7]
[367043120,1750635042096,-151.0,0.00034899,7]
[367043121,1750635042105,-151.0,0.00034899,7]
[367043122,1750635042115,-151.0,0.00034899,7]
[367043123,1750635042125,-151.0,0.00034899,7]
[367043124,1750635042134,-185.787669,0.00034899,7]
[367043125,1750635042144,-185.787669,0.00034899,7]
[367043126,1750635042153,-185.787669,0.00034899,7]
[367043127,1750635042162,-185.787669,0.00034899,7]
[367043128,1750635042171,-185.787669,0.00034899,7]
[367043129,1750635042181,-185.787669,0.00034899,7]
[367043132,1750635042190,-185.787669,0.00034899,7]
[367043134,1750635042200,-185.787669,0.00034899,7]
[367043135,1750635042210,-185.787669,0.00034899,7]
[367043136,1750635042220,-185.787669,0.00034899,7]
[367043137,1750635042230,-185.787669,0.00034899,7]
[367043138,1750635042239,-185.787669,0.00034899,7]
[367043139,1750635042248,-151.0,0.00034899,7]
[367043140,1750635042257,-151.0,0.00034899,7]
[367043141,1750635042266,-151.0,0.00034899,7]
[367043142,1750635042275,-151.0,0.00034899,7]
[367043143,1750635042284,-151.0,0.00034899,7]
[367043144,1750635042293,-151.0,0.00034899,7]
[367043145,1750635042303,-288.567768,0.00034899,7]
[367043146,1750635042312,-174.664616,0.00034899,7]
[367043147,1750635042322,-174.664616,0.00034899,7]
[367043148,1750635042332,-21781.2506652,0.00034899,2]
[367043149,1750635042344,-300.0,0.00034899,10]
[367043150,1750635042353,-300.0,0.000349,10]
[367043151,1750635042363,-300.0,0.000349,10]
[367043153,1750635042372,-185.217877,0.000349,35]
[367043155,1750635042381,-278.392608,0.000349,35]
[367043156,1750635042391,-247.115806,0.000349,7]
[367043157,1750635042400,-151.0,0.000349,7]
[367043158,1750635042409,-151.0,0.000349,7]
[367043159,1750635042419,-201.97695,0.000349,7]
[367043160,1750635042428,-185.787669,0.000349,7]
[367043161,1750635042437,-185.787669,0.000349,7]
[367043162,1750635042447,-289.775849,0.000349,2]
[367043163,1750635042456,-289.775849,0.000349,2]
[367043164,1750635042466,-151.0,0.000349,7]
[367043165,1750635042476,-151.0,0.000349,7]
[367043166,1750635042485,-151.0,0.000349,7]
[367043168,1750635042495,-882.525702,0.000349,7]
[367043169,1750635042504,-882.525702,0.000349,7]
[367043170,1750635042514,-882.525702,0.000349,7]
[367043171,1750635042526,-882.525702,0.000349,7]
[367043172,1750635042535,-184.005829,0.000349,7]
[367043173,1750635042545,-184.005829,0.000349,7]
[367043174,1750635042555,-229.467453,0.000349,7]
[367043175,1750635042566,-184.005829,0.000349,7]
[367043176,1750635042576,-229.467453,0.000349,7]
[367043177,1750635042585,-184.005829,0.000349,7]
[367043178,1750635042595,-2489.4480504,0.000349,2]
[367043179,1750635042607,-174.664616,0.000349,7]
[367043180,1750635042617,-174.66462422,0.000349,7]
[367043181,1750635042626,-1900.0,0.000349,12]
[367043182,1750635042637,-500.0,0.000349,14]
[367043183,1750635042647,-494.33221917,0.00034901,2]
[367043184,1750635042656,-160234.515344,0.00034901,2]
[367043185,1750635042666,-8520.18113101,0.00034901,2]
[367043188,1750635043501,-19508.7999996,0.00034901,2]
[367043189,1750635043545,-1401.0,0.00034901,2]
[367043191,1750635043750,-25305.0,0.00034901,2]
[367043192,1750635043777,-20244.00000001,0.00034901,2]
[367043193,1750635044650,-502.49912,0.00034847,7]
[367043194,1750635044662,-71.07594336,0.00034847,7]
[367043195,1750635044672,-573.57506336,0.00034847,7]
[367043196,1750635044681,-573.57506336,0.00034847,7]
[367043197,1750635044691,-573.57506336,0.00034847,7]
[367043198,1750635044701,-573.57506336,0.00034847,7]
[367043199,1750635044711,-573.57506336,0.00034847,7]
[367043200,1750635044721,-77489.77352538,0.00034901,2]
[367043201,1750635044730,-151.0,0.00034901,7]
[367043202,1750635044739,-151.0,0.00034901,7]
[367043203,1750635044748,-151.276196,0.00034901,7]
[367043204,1750635044759,-151.0,0.00034901,7]
[367043205,1750635044768,-151.0,0.00034901,7]
[367043206,1750635044777,-151.0,0.00034901,7]
[367043207,1750635044786,-151.0,0.00034901,7]
[367043208,1750635044796,-151.0,0.00034901,7]
[367043209,1750635044805,-151.0,0.00034901,7]
[367043210,1750635044815,-151.0,0.00034901,7]
[367043211,1750635044824,-185.787669,0.00034901,7]
[367043212,1750635044833,-151.0,0.00034901,7]
[367043213,1750635044842,-185.787669,0.00034901,7]
[367043214,1750635044852,-151.0,0.00034901,7]
[367043215,1750635044861,-289.775849,0.00034901,2]
[367043216,1750635044870,-289.775843,0.00034901,2]
[367043217,1750635044879,-151.0,0.00034901,7]
[367043218,1750635044888,-151.0,0.00034901,7]
[367043219,1750635044898,-882.525702,0.00034901,7]
[367043220,1750635044907,-882.525702,0.00034901,7]
[367043221,1750635044917,-229.467453,0.00034901,7]
[367043222,1750635044926,-229.467451,0.00034901,7]
[367043223,1750635044936,-184.005829,0.00034905,7]
[367043224,1750635044946,-184.005829,0.00034905,7]
[367043225,1750635044955,-53411.5051145,0.00034905,2]
[367043226,1750635044964,-43562.5013303,0.00034905,2]
[367043227,1750635044974,-185.787669,0.00034909,7]
[367043228,1750635044983,-185.787669,0.00034909,7]
[367043229,1750635044992,-155.164571,0.00034909,7]
[367043230,1750635045002,-300.0,0.0003491,10]
[367043231,1750635045011,-151.0,0.0003491,7]
[367043232,1750635045020,-151.0,0.0003491,7]
[367043233,1750635045029,-151.0,0.0003491,7]
[367043234,1750635045039,-151.0,0.0003491,7]
[367043235,1750635045049,-151.0,0.0003491,7]
[367043236,1750635045058,-151.0,0.0003491,7]
[367043237,1750635045067,-151.0,0.0003491,7]
[367043238,1750635045077,-151.0,0.0003491,7]
[367043239,1750635045086,-151.0,0.0003491,7]
[367043240,1750635045095,-151.0,0.0003491,7]
[367043241,1750635045105,-214.591281,0.0003491,7]
[367043242,1750635045114,-151.0,0.0003491,7]
[367043243,1750635045123,-151.0,0.0003491,7]
[367043244,1750635045133,-151.0,0.0003491,7]
[367043245,1750635045142,-151.0,0.0003491,7]
[367043246,1750635045152,-151.0,0.0003491,7]
[367043247,1750635045161,-151.0,0.0003491,7]
[367043248,1750635045171,-151.0,0.0003491,7]
[367043249,1750635045180,-151.0,0.0003491,7]
[367043250,1750635045190,-151.0,0.0003491,7]
[367043251,1750635045200,-151.0,0.0003491,7]
[367043252,1750635045209,-151.0,0.0003491,7]
[367043253,1750635045218,-151.0,0.0003491,7]
[367043254,1750635045228,-151.0,0.0003491,7]
[367043255,1750635045237,-151.0,0.0003491,7]
[367043256,1750635045246,-151.0,0.0003491,7]
[367043257,1750635045256,-151.0,0.0003491,7]
[367043258,1750635045265,-151.0,0.0003491,7]
[367043259,1750635045274,-151.0,0.0003491,7]
[367043260,1750635045283,-151.0,0.0003491,7]
[367043261,1750635045293,-151.0,0.0003491,7]
[367043262,1750635045302,-151.0,0.0003491,7]
[367043264,1750635045312,-151.0,0.0003491,7]
[367043266,1750635045321,-151.0,0.0003491,7]
[367043267,1750635045330,-151.0,0.0003491,7]
[367043268,1750635045340,-151.0,0.0003491,7]
[367043269,1750635045349,-267.227616,0.0003491,7]
[367043270,1750635045359,-151.0,0.0003491,7]
[367043271,1750635045368,-151.0,0.0003491,7]
[367043272,1750635045377,-151.0,0.0003491,7]
[367043273,1750635045386,-151.0,0.0003491,7]
[367043275,1750635045396,-151.0,0.0003491,7]
[367043277,1750635045407,-151.0,0.0003491,7]
[367043279,1750635045416,-153.566114,0.0003491,7]
[367043281,1750635045425,-6.13988215,0.0003491,7]
[367043283,1750635045439,-179.64778685,0.0003491,7]
[367043284,1750635045448,-151.0,0.0003491,7]
[367043285,1750635045457,-151.0,0.0003491,7]
[367043286,1750635045466,-151.0,0.0003491,7]
[367043287,1750635045476,-185.787668,0.0003491,7]
[367043288,1750635045485,-151.0,0.0003491,7]
[367043289,1750635045494,-151.0,0.0003491,7]
[367043290,1750635045504,-151.0,0.0003491,7]
[367043291,1750635045514,-151.0,0.0003491,7]
[367043292,1750635045524,-151.0,0.0003491,7]
[367043293,1750635045533,-151.0,0.0003491,7]
[367043294,1750635045543,-151.0,0.0003491,7]
[367043295,1750635045552,-151.0,0.0003491,7]
[367043296,1750635045564,-286.148966,0.0003491,7]
[367043297,1750635045573,-882.525702,0.0003491,7]
[367043298,1750635045582,-882.52571,0.0003491,7]
[367043299,1750635045591,-184.005829,0.0003491,7]
[367043300,1750635045602,-184.005826,0.0003491,7]
[367043301,1750635045611,-151.0,0.00034911,7]
[367043302,1750635045620,-171046.2375615,0.00034911,2]
[367043303,1750635045633,-47186.8281231,0.00034911,2]
[367043304,1750635045642,-3192.8619297,0.00034911,2]
[367043305,1750635045651,-55499.9045821,0.00034911,2]
[367043306,1750635045660,-3013.8348507,0.00034911,2]
[367043307,1750635045669,-20721.1451444,0.00034911,2]
[367043308,1750635045679,-24918.4229777,0.00034911,2]
[367043309,1750635045691,-6960.4038046,0.00034911,2]
[367043310,1750635045700,-355.89744584,0.00034915,2]
[367043311,1750635045709,-151.0,0.00034915,2]
[367043312,1750635045719,-500.0,0.00034915,19]
[367043313,1750635045728,-500.0,0.00034915,19]
[367043314,1750635045737,-150.0,0.00034915,19]
[367043315,1750635045747,-150.0,0.00034915,19]
[367043316,1750635045756,-500.0,0.00034915,19]
[367043317,1750635045765,-500.0,0.00034915,19]
[367043318,1750635045774,-150.0,0.00034915,19]
[367043319,1750635045784,-150.0,0.00034915,19]
[367043320,1750635045793,-500.0,0.00034915,19]
[367043321,1750635045802,-150.0,0.00034915,19]
[367043322,1750635045813,-500.0,0.00034915,19]
[367043323,1750635045823,-500.0,0.00034915,19]
[367043324,1750635045833,-150.0,0.00034915,19]
[367043325,1750635045843,-500.0,0.00034915,19]
[367043326,1750635045853,-500.0,0.00034915,19]
[367043327,1750635045863,-150.0,0.00034915,19]
[367043328,1750635045873,-500.0,0.00034915,19]
[367043329,1750635045882,-150.0,0.00034915,19]
[367043330,1750635045892,-150.47883528,0.00034915,19]
[367043331,1750635045901,-500.0,0.00034915,19]
[367043332,1750635045910,-150.0,0.00034915,19]
[367043333,1750635045919,-500.0,0.00034915,19]
[367043334,1750635045928,-500.0,0.00034915,19]
[367043335,1750635045937,-500.0,0.00034915,19]
[367043336,1750635045947,-150.0,0.00034915,19]
[367043337,1750635045957,-500.0,0.00034915,19]
[367043338,1750635045966,-500.0,0.00034915,19]
[367043339,1750635045975,-219.52548528,0.00034915,19]
[367043341,1750635045985,-150.0,0.00034915,19]
[367043343,1750635045993,-150.0,0.00034915,19]
[367043345,1750635046003,-500.0,0.00034915,19]
[367043347,1750635046013,-151.0,0.00034915,7]
[367043349,1750635046022,-151.0,0.00034915,7]
[367043351,1750635046031,-156.587,0.00034915,7]
[367043353,1750635046040,-151.0,0.00034915,7]
[367043354,1750635046049,-162.380719,0.00034915,7]
[367043357,1750635046061,-168.3888056,0.00034915,7]
[367043359,1750635046070,-174.61919141,0.00034915,7]
[367043361,1750635046080,-500.0,0.00034915,7]
[367043362,1750635046089,-1957.856,0.00034915,7]
[367043364,1750635046097,-181.08010149,0.00034915,7]
[367043366,1750635046107,-151.0,0.00034915,7]
[367043368,1750635046115,-500.0,0.00034915,7]
[367043370,1750635046124,-2030.296672,0.00034915,7]
[367043372,1750635046133,-151.0,0.00034915,7]
[367043374,1750635046142,-187.78006525,0.00034915,7]
[367043376,1750635046151,-151.0,0.00034915,7]
[367043378,1750635046160,-151.0,0.00034915,7]
[367043380,1750635046169,-500.0,0.00034915,7]
[367043382,1750635046178,-2105.41764886,0.00034915,7]
[367043384,1750635046187,-151.0,0.00034915,7]
[367043386,1750635046196,-194.72792766,0.00034915,7]
[367043388,1750635046205,-500.0,0.00034915,7]
[367043390,1750635046214,-2183.31810187,0.00034915,7]
[367043392,1750635046223,-151.0,0.00034915,7]
[367043394,1750635046232,-201.93286099,0.00034915,7]
[367043396,1750635046242,-2264.10087164,0.00034915,7]
[367043398,1750635046251,-500.0,0.00034915,7]
[367043400,1750635046260,-500.0,0.00034915,7]
[367043402,1750635046269,-151.0,0.00034915,7]
[367043404,1750635046278,-209.40437684,0.00034915,7]
[367043406,1750635046287,-500.0,0.00034915,7]
[367043408,1750635046296,-2347.87260389,0.00034915,7]
[367043410,1750635046304,-500.0,0.00034915,7]
[367043412,1750635046314,-151.0,0.00034915,7]
[367043413,1750635046323,-500.0,0.00034915,7]
[367043415,1750635046332,-217.15233878,0.00034915,7]
[367043417,1750635046341,-500.0,0.00034915,7]
[367043419,1750635046350,-2434.74389024,0.00034915,7]
[367043421,1750635046359,-151.0,0.00034915,7]
[367043423,1750635046368,-225.18697532,0.00034915,7]
[367043426,1750635046378,-500.0,0.00034915,7]
[367043428,1750635046387,-2524.82941417,0.00034915,7]
[367043429,1750635046396,-500.0,0.00034915,7]
[367043432,1750635046405,-233.51889341,0.00034915,7]
[367043433,1750635046414,-500.0,0.00034915,7]
[367043435,1750635046424,-2618.2481025,0.00034915,7]
[367043437,1750635046433,-500.0,0.00034915,7]
[367043439,1750635046442,-151.00000001,0.00034915,7]
[367043441,1750635046451,-500.0,0.00034915,7]
[367043443,1750635046460,-2333.77818752,0.00034915,7]
[367043445,1750635046470,-500.0,0.00034915,7]
[367043447,1750635046479,-500.0,0.00034915,7]
[367043449,1750635046488,-242.15909246,0.00034915,7]
[367043451,1750635046497,-500.0,0.00034915,7]
[367043453,1750635046506,-500.0,0.00034915,7]
[367043455,1750635046514,-251.11897888,0.00034915,7]
[367043457,1750635046527,-500.0,0.00034915,7]
[367043459,1750635046536,-243.78739783,0.00034915,7]
[367043461,1750635046545,-500.0,0.00034915,7]
[367043463,1750635046554,-500.0,0.00034915,7]
[367043465,1750635046564,-500.0,0.00034915,7]
[367043467,1750635046574,-151.90847469,0.00034915,7]
[367043469,1750635046583,-500.0,0.00034915,7]
[367043471,1750635046592,-500.0,0.00034915,7]
[367043473,1750635046601,-151.0,0.00034915,7]
[367043475,1750635046611,-151.0,0.00034915,7]
[367043477,1750635046621,-151.0,0.00034915,7]
[367043479,1750635046631,-151.0,0.00034915,7]
[367043481,1750635046640,-668.65185757,0.00034915,7]
[367043483,1750635046650,-151.0,0.00034915,7]
[367043485,1750635046660,-500.0,0.00034915,7]
[367043487,1750635046669,-500.0,0.00034915,7]
[367043489,1750635046678,-500.0,0.00034915,7]
[367043491,1750635046688,-500.0,0.00034915,7]
[367043493,1750635046698,-693.3919763,0.00034915,7]
[367043495,1750635046707,-500.0,0.00034915,7]
[367043497,1750635046717,-207.4,0.00034915,7]
[367043499,1750635046726,-500.0,0.00034915,7]
[367043501,1750635046735,-215.0738,0.00034915,7]
[367043503,1750635046744,-500.0,0.00034915,7]
[367043505,1750635046753,-223.0315306,0.00034915,7]
[367043507,1750635046762,-500.0,0.00034915,7]
[367043509,1750635046771,-231.28369723,0.00034915,7]
[367043511,1750635046780,-500.0,0.00034915,7]